Cogmind - Beta 17.1 @@@ ROGUE MODE // 2026.09.17 @ 21:47:52 Player: jostin Result: Self-destructed Performance ------------- Evolutions (1) 500 Regions Visited (2) 400 Robots Destroyed (22) 110 Value Destroyed (539) 539 Prototype IDs (1) 20 Alien Tech Used (0) 0 Bonus (0) 0 TOTAL SCORE: 1569 Bonus ------- None Cogmind --------- Core Integrity 357/400 Matter 300/300 Energy 250/250 System Corruption 1% Temperature Cool (0) Movement Walking (105) Location -9/Materials Parts ------- > --- POWER (1) -------- Ion Engine > --- PROPULSION (3) --- Aluminum Leg Aluminum Leg Aluminum Leg > --- UTILITY (3) ------ Heat Sink Medium Storage Unit Hardened Light Armor Plating > --- WEAPON (2) ------- Improved EM Shotgun Heavy Assault Rifle > --- INVENTORY (10) --- Improved Ion Engine Aluminum Leg High-capacity Storage Unit Beam Rifle Particle Gun Assault Rifle Assault Rifle Mini Grenade Launcher Mini Grenade Launcher Peak State ------------ > --- POWER ------------ Ion Engine > --- PROPULSION ------- Aluminum Leg Aluminum Leg Aluminum Leg > --- UTILITY ---------- Heat Sink Medium Storage Unit Hardened Light Armor Plating > --- WEAPON ----------- Improved EM Shotgun Heavy Assault Rifle > --- INVENTORY -------- Improved Ion Engine Aluminum Leg High-capacity Storage Unit Particle Gun Assault Rifle Assault Rifle Light Assault Rifle Mini Grenade Launcher Mini Grenade Launcher [Rating: 14] Favorites ----------- Power Ion Engine Engine Ion Engine Propulsion Aluminum Leg Leg Aluminum Leg Utility Small Storage Unit Device Seismic Detector Storage Small Storage Unit Protection Hardened Light Armor Plating Weapon Assault Rifle Energy Gun Improved EM Shotgun Ballistic Gun Assault Rifle Build | -11 -10 -9 ------- Run | Yrd Mat Mat Slots Evolved 2 | . . 2 Power . | . . . Propulsion 1 | . . 1 Utility 1 | . . 1 Weapon . | . . . Parts Attached 18 | 7 . 11 Power 2 | 1 . 1 Engine 2 | 1 . 1 Core . | . . . Reactor . | . . . Propulsion 5 | 2 . 3 Treads . | . . . Leg 5 | 2 . 3 Wheel . | . . . Hover . | . . . Flight . | . . . Utility 6 | 2 . 4 Device 3 | 1 . 2 Storage 2 | 1 . 1 Processor . | . . . Hackware . | . . . Protection 1 | . . 1 Artifact . | . . . Weapon 5 | 2 . 3 Energy Gun 1 | . . 1 Energy Cannon . | . . . Ballistic Gun 4 | 2 . 2 Ballistic Cannon . | . . . Launcher . | . . . Special Weapon . | . . . Impact Weapon . | . . . Slashing Weapon . | . . . Piercing Weapon . | . . . Special Melee Weapon . | . . . Unidentified Prototypes 1 | . . 1 Parts Lost 2 | . . 2 Power . | . . . Propulsion 1 | . . 1 Utility 1 | . . 1 Weapon . | . . . Highest Loss Streak 1 | . . 1 To Critical Strikes . | . . . Average Backups 5 | 1 3 7 Power 1 | . 1 1 Propulsion 1 | . 1 1 Utility . | . . 1 Weapon 1 | . . 3 Tool/Special . | . . . Unused Backups 11 | . . 11 Power 3 | . . 3 Propulsion 2 | . . 2 Utility 1 | . . 1 Weapon 5 | . . 5 Tool/Special . | . . . Average Slot Usage (%) 94 | . 95 94 Engine 12 | . 14 11 Leg 26 | . 23 29 Device 13 | . 14 12 Storage 12 | . 14 11 Protection 3 | . . 7 Energy Gun 3 | . . 6 Ballistic Gun 21 | . 28 15 Peak Build Rating 14 | 7 7 14 Average Rating 8 | 5 6 11 On Entrance 4 | . 7 7 Avg Prop Armor Cover (%) . | . . . Naked Turns . | . . . Heaviest Build 27 | 15 15 27 Greatest Support 30 | 20 20 30 Greatest Overweight (x) 1 | . 1 . Average Overweight (x) . | . . . Largest Inventory Capacity 10 | 8 8 10 Average Capacity 8 | 7 8 8 Most Carried 9 | 2 6 9 Average Carried 5 | 1 4 7 Final Capacity 10 | 8 8 10 Final Carried 9 | 2 5 9 Class Distribution -------------------- 93% | Mutant 6% | Scavenger-Mutant Dominant Class ---------------- Mutant | -10/Materials Mutant | -9/Materials Resources | -11 -10 -9 ----------- Run | Yrd Mat Mat Matter Collected 688 | 235 152 301 Remotely . | . . . Salvage Created 784 | 20 174 590 Parts 56 | 4 8 44 Haulers Intercepted 1 | . . 1 Recyclers Shooed 1 | . . 1 Parts Field Recycled . | . . . Retrieved Matter . | . . . Parts Self-Destructed . | . . . Prevented . | . . . Parts Restored . | . . . Kills | -11 -10 -9 ------- Run | Yrd Mat Mat Combat Hostiles Destroyed 19 | . 5 14 Guns 19 | . 5 14 Classes Destroyed 6 | 1 3 2 Tunneler 1 | 1 . . Hauler 1 | . . 1 Recycler 1 | . 1 . Swarmer 7 | . 3 4 Grunt 9 | . 2 7 Sentry 3 | . . 3 Best Kill Streak 4 | 1 3 4 Combat Bots Only 4 | . 3 4 Max Kills in Single Turn 1 | 1 1 1 Gunslinging . | . . . Exploded . | . . . Melee . | . . . Uniques/NPCs Destroyed . | . . . Combat | -11 -10 -9 -------- Run | Yrd Mat Mat Hostile Shots Fired 72 | . 17 55 Missed 18 | . 3 15 Hits 54 | . 14 40 Projectile 54 | . 14 40 Critical Strikes 2 | . 1 1 Damage Taken 618 | . 175 443 Core 79 | . 36 43 Absorbed by Shields . | . . . Core Remaining (%) 92 | 100 85 . Volleys Fired 63 | 2 18 43 Largest 2 | 2 2 2 Hottest 65 | 40 40 65 Shots Fired 119 | 3 36 80 Gun 119 | 3 36 80 Cannon . | . . . Launcher . | . . . Special . | . . . Kinetic 94 | 3 36 55 Thermal . | . . . Explosive . | . . . Electromagnetic 25 | . . 25 Robot Hit Streak 10 | 1 10 9 Robot Miss Streak 6 | 1 4 6 Penetration Max . | . . . Secondary Targets . | . . . Shots Hit Robots 71 | 2 22 47 Core Hits 35 | 2 10 23 Critical Kills 2 | . 1 1 Critical Parts Destroyed . | . . . Critical Strikes 2 | . 1 1 Destroy 2 | . 1 1 Melee Attacks . | . . . Impact . | . . . Slashing . | . . . Piercing . | . . . Sneak Attacks . | . . . Combat Hostiles . | . . . Follow-up Attacks . | . . . Damage Inflicted 1011 | 25 276 710 Guns 1004 | 25 272 707 Cannons . | . . . Explosions . | . . . Melee . | . . . Ramming 7 | . 4 3 Kinetic 694 | 25 272 397 Thermal . | . . . Explosive . | . . . Electromagnetic 310 | . . 310 Impact . | . . . Slashing . | . . . Piercing . | . . . Highest Corruption 1 | . 1 1 Average Corruption 1 | . 1 1 Corruption Purged . | . . . Corruption Blocked . | . . . Effects 3 | . 3 . Matter Fused 1 | . 1 . Parts Rejected 1 | . 1 . Data Loss (minor) 1 | . 1 . Overload Shots . | . . . Overflow Damage . | . . . Projectiles . | . . . Explosions . | . . . Melee . | . . . Knockbacks . | . . . Impact . | . . . Kinetic . | . . . Secondary . | . . . Self-Inflicted Damage . | . . . Shots . | . . . Rammed . | . . . Targets Rammed 2 | . 1 1 Kicked 2 | . 1 1 Crushed . | . . . Highest Temperature 120 | . 20 120 Average Temperature 49 | . 8 58 Received Heat Transfer 252 | . 72 180 Siege Activations . | . . . Martial Activations . | . . . Shielding Activations . | . . . Robots Disrupted . | . . . Combat Hostiles . | . . . Robots Corrupted . | . . . Combat Hostiles . | . . . Parts Fried 1 | . . 1 Impact Corruptions . | . . . Robots Melted . | . . . Combat Hostiles . | . . . Parts Melted . | . . . Heat Transferred . | . . . Parts Sabotaged . | . . . Parts Stolen . | . . . Parts Stripped . | . . . Power Chain Reactions . | . . . Alert | -11 -10 -9 ------- Run | Yrd Mat Mat Maximum Alert Level 1 | . . 1 Low Security (%) 99 | 100 100 98 Level 1 . | . . 1 Level 2 . | . . . Level 3 . | . . . Level 4 . | . . . Level 5 . | . . . High Security . | . . . Max Security . | . . . Peak Influence 202 | 5 100 202 Initial . | . . . Average 58 | . 23 100 Influence Increases 535 | 5 125 405 Destroy 0b10 Robot/C 380 | . 100 280 Destroy 0b10 Robot/NC 15 | 5 5 5 Destroy Leader 92 | . 20 72 Successful Hack 18 | . . 18 Lose Combat Pursuer 30 | . . 30 Influence Decreases 354 | 5 125 224 Time Decay 334 | 5 125 204 Lost Part 20 | . . 20 Squads Dispatched 3 | . . 3 Investigation 3 | . . 3 Extermination . | . . . Reinforcement . | . . . Assault . | . . . Garrison . | . . . Intercept . | . . . Searches Triggered . | . . . Construction Impeded . | . . . Haulers Reinforced . | . . . Active Scanning Responses . | . . . Cargo Convoy Interrupts . | . . . Stealth | -11 -10 -9 --------- Run | Yrd Mat Mat Distress Signals . | . . . Communications Jammed . | . . . Distress Signals . | . . . Times Spotted 31 | . 12 19 Peak Tracking Total 4 | . 3 4 Tactical Retreats 2 | . . 2 Traps | -11 -10 -9 ------- Run | Yrd Mat Mat Traps Triggered 4 | . 1 3 Indirectly . | . . . Trap Hack Attempts . | . . . Triggered . | . . . Disarmed . | . . . Reprogrammed . | . . . Reused . | . . . Traps Extracted . | . . . Installed . | . . . Triggered . | . . . Machines | -11 -10 -9 ---------- Run | Yrd Mat Mat Machines Disabled . | . . . Max in Single Turn . | . . . Machines Repaired . | . . . Machines Dismantled . | . . . Machines Sabotaged . | . . . Overloaded Fab Kills . | . . . Hacking | -11 -10 -9 --------- Run | Yrd Mat Mat Machines Accessed 9 | . 5 4 Terminals 7 | . 4 3 Fabricators . | . . . Repair Stations . | . . . Recycling Units 1 | . 1 . Scanalyzers 1 | . . 1 Garrison Access . | . . . Total Hacks 22 | . 12 10 Successful 9 | . 4 5 Failed 13 | . 8 5 Catastrophic . | . . . Database Lockouts . | . . . Manual 10 | . 6 4 Terminals 18 | . 10 8 Fabricators . | . . . Repair Stations . | . . . Recycling Units 2 | . 2 . Scanalyzers 2 | . . 2 Garrison Access . | . . . Terminal Hacks 6 | . 3 3 Robot Analysis 2 | . 1 1 Terminal Index 1 | . . 1 Locate Traps 2 | . 2 . Zone Layout 1 | . . 1 Fabricator Hacks . | . . . Repair Station Hacks . | . . . Recycling Unit Hacks 1 | . 1 . Report Inventory 1 | . 1 . Scanalyzer 1 | . . 1 Retrieve Study 1 | . . 1 Garrison Access Hacks . | . . . Unauthorized Hacks 1 | . . 1 Terminals 1 | . . 1 Botnet 1 | . . 1 Fabricators . | . . . Repair Stations . | . . . Recycling Units . | . . . Scanalyzers . | . . . Garrison Access . | . . . Data Cores Recovered . | . . . Used . | . . . Hacking Detections 9 | . 5 4 Full Trace Events 2 | . 1 1 Feedback Events 1 | . 1 . Corruption 1 | . 1 . Feedback Blocked . | . . . Robot Schematics Acquired . | . . . Robots Built . | . . . Authchips . | . . . Time . | . . . Total Robot Build Rating . | . . . Part Schematics Acquired . | . . . Parts Built . | . . . Authchips . | . . . Time . | . . . Total Part Build Rating . | . . . Part Studies Acquired 1 | . . 1 Parts Repaired . | . . . Time . | . . . Parts Recycled . | . . . Recycled Matter . | . . . Retrieved Matter . | . . . Retrieved Components . | . . . Parts Scanalyzed . | . . . Part Schematics Acquired . | . . . Parts Damaged . | . . . Bothacking | -11 -10 -9 ------------ Run | Yrd Mat Mat Used RIF Installer . | . . . Robots Hacked . | . . . Non-combat . | . . . Combat . | . . . Robot Hacks Applied . | . . . Relay Couplers Released . | . . . Fabnet Peak Effective % . | . . . Robots Rewired . | . . . Allies Hacked . | . . . Hacks Repelled . | . . . Allies | -11 -10 -9 -------- Run | Yrd Mat Mat Total Allies . | . . . Largest Group . | . . . Highest-Rated Group . | . . . Highest-Rated Ally . | . . . Total Orders . | . . . Ally Attacks . | . . . Total Damage . | . . . Kills . | . . . Allies Corrupted . | . . . Allies Melted . | . . . Intel | -11 -10 -9 ------- Run | Yrd Mat Mat Active Infowar (turns) 804 | 28 532 244 Structural 77 | . . 77 Seismic 804 | 28 532 244 Robot Analysis Total 2 | . 1 1 Derelict Logs Recovered . | . . . Drone Launches . | . . . Drone Recoveries . | . . . Exploration | -11 -10 -9 ------------- Run | Yrd Mat Mat Turns Passed 1128 | 63 532 533 Spaces Moved 666 | 41 335 290 Core 4 | 4 . . Treads . | . . . Legs 662 | 37 335 290 Wheels . | . . . Hover . | . . . Flight . | . . . Fastest Speed 50 | 50 120 105 Average Speed 120 | 113 135 105 Slowest Speed 190 | 120 190 120 Overloaded Moves . | . . . Propulsion Burnouts . | . . . Robots Hopped . | . . . Potential Cave-ins . | . . . Cave-ins Triggered . | . . . Exploration Rate (%) 24 | 4 44 25 Regions Visited 2 Branch Regions . Pre-discovered Areas . | . . . Known Exits Taken . | . . . Unknown Exits Taken 2 | 1 1 . Scrap Searched . | . . . Spaces Dug . | . . . Terrain Destroyed . | . . . Melee . | . . . Projectile . | . . . AOE . | . . . Terrain Rammed . | . . . Walls Destroyed . | . . . Machines Disabled . | . . . Actions | -11 -10 -9 --------- Run | Yrd Mat Mat Total 865 | 51 378 436 Wait 93 | . 20 73 Move 664 | 40 334 290 Hop . | . . . Pick Up 13 | 2 4 7 Fast Attach 11 | 7 . 4 Attach 2 | . 1 1 Detach 1 | . . 1 Swap 8 | . . 8 Drop 8 | . . 8 Fire 63 | 2 18 43 Melee . | . . . Ram . | . . . Kick 2 | . 1 1 Crush . | . . . Escape Stasis . | . . . Rewire . | . . . Trap . | . . . Miscellaneous . | . . . Route ------- -11/Scrapyard -10/Materials (discovered 2 exits: *Mat / [*Min]) -9/Materials (discovered 1 exit: [*Mat]) History --------- Turn | Location | Event 2 | -11/Scrapyard | Met Revision 17 43 | -11/Scrapyard | Discovered new exit (range 14) 64 | -11/Scrapyard | Entered Materials 221 | -10/Materials | Discovered new exit (range 15) 312 | -10/Materials | Build established: Mutant 501 | -10/Materials | Discovered new exit (range 5) 596 | -10/Materials | Entered another Materials area 596 | -9/Materials | Evolved 2 slots: Propulsion x1, Utility x1 1022 | -9/Materials | Discovered new exit (range 16) 1129 | -9/Materials | Self-destructed Last Messages --------------- 01015_ R-06 Scavenger collects Corrupted Sml. Laser. 01018_ Acquired 35 matter. 01019_ R-06 Scavenger collects Sml. Laser. 01022_ EXIT=FOUND 01043_ A-02 Transporter destroyed. 01059_ Dropped Sml. Storage Unit. 01061_ Acquired 31 matter. 01088_ Aluminum Leg+ destroyed. 01091_ Y-45 Defender destroyed. 01094_ Acquired 13 matter. 01101_ Dropped Lgt. Assault Rifle. 01103_ Acquired Beam Rifle. 01105_ Acquired 20 matter. 01114_ R-06 Scavenger collects Lgt. Assault Rifle. 01121_ R-06 Scavenger collects Heat Sink. 01127_ Triggered Shock Trap. 01127_ The floor emits a surge of raw power. 01127_ System corrupted (+1). Map ----- +----------------------------------------------------+ | | | | | | | | | | | | | | | | | | | ?????????????????????????????????????????????????? | | ?????????????????????????????????????????????????? | | ?????????????????????????????????????????????????? | | ?????????????????????????????????????????????????? | | ?????????????????????????????????????????????????? | | ????????????????????###########??????????????????? | | ????????????????????# #??????????????????? | | ????????????????????# #??????????????????? | | ????????????????????# #???########???????? | | ????????????????????# #???# #???????? | | ????????????????????# #???#! """ #???????? | | ????????????????????# """ """ #???# """ #####???? | | ????????????????????# """ """ #???# """ # ##### | | ????????????????????# """ """ #???# # < | | ????????????????????#####+#####???# #! | | ??????????????????????# ##########+###[ | | ??????????????????????# u@ *[%[ | | ??????????????????????# =! | | ??????????????????????# w w =! | | ????????????????? ]######### #####/###### | | ???????????????? ############???????# #??? ???? | | ????????????????????????????????????# #??? "??? | | ????????????????????????????????????# #??? ""?? | | ????????????????????????????????????# #??? """? | | ????????????????????????????????????# #?? """? | | ????????????????????????????????????# #?? """? | | ????????????????????????????????????# ??? "T" ? | | ????????????????????????????????????# ??? """ ? | | ????????????????????????????????????? ??########?# | | ????????????????????????????????????? ??????????? | | ????????????????????????????????????? ??????????? | | ????????????????????????????????????? ??????????? | | ????????????????????????????????????????????????? | | ????????????????????????????????????????????????? | | ????????????????????????????????????????????????? | | ????????????????????????????????????????????????? | | ?????????????????????????????????????????????????# | | ????????????????????????????????????????????????? | | ????????????????????????????????????????????????? | | ????????????????????????????????????????????????? | | ????????????????????????????????????????????????? | +----------------------------------------------------+ Best States ------------- Heat Dissipation 38 Energy Generation 10 Energy Capacity 250 Matter Stores 300 Matter Capacity 300 Sight Range 16 Terrain Scan Density 10 Armor Coverage 150 Evasion (%) 55 Item Schematics ----------------- None Robot Schematics ------------------ None Fabricated ------------ Nothing Repaired ---------- Nothing Studied --------- Aluminum Leg | -9/Materials | Hacked Alien Tech Used ----------------- None Achievements -------------- None Challenges ------------ None Game ------ Seed JunkVariableThrower Manual? 0 Play Time 00:13:08 Cumulative 15.7 hours Start 2026.09.17 @ 21:24:48 End 2026.09.17 @ 21:47:52 Sessions 1 Manual Loads 0 Difficulty Rogue Special Mode None Game No. 19 Rogue 4 Adventurer 15 Explorer 0 Win Type - Total 0 Types 0/0/0/0/0/0/0/0/0/0 Lore% 9 Gallery% 12 Achievement% 14 Wizard Run 0 Options --------- Layout 2 ASCII 0 Keyboard 0 Movement Mouse Keybinds 0 Fullscreen 1 Font 24/Smallcaps Map View 50x44 Zoom Use 0% Tactical HUD 1 Map Filters NONE Filters NONE Steam 1 RUN: d058060c-00b2-43fd-9b9d-46167ef8ea1f